lending/lending_fUSD_20241007
["ID","MTS","AMOUNT","RATE_DAILY","PERIOD"]
[340029353,1728337821125,-500.0,0.00038356,120]
[340029354,1728337821148,-500.0,0.00038356,120]
[340029355,1728337821169,-500.0,0.00038356,120]
[340029356,1728337821193,-1019.98,0.00038356,120]
[340029357,1728337821216,-500.0,0.00038356,120]
[340029358,1728337821237,-1239.94,0.00038356,120]
[340029359,1728337821259,-500.0,0.00038356,120]
[340029360,1728337821280,-500.0,0.00038356,120]
[340029361,1728337821302,-500.0,0.00038356,120]
[340029362,1728337821324,-3126.45,0.00038356,120]
[340029363,1728337821346,-500.0,0.00038356,120]
[340029364,1728337821367,-500.0,0.00038356,120]
[340029365,1728337821388,-500.0,0.00038356,120]
[340029366,1728337821410,-500.0,0.00038356,120]
[340029367,1728337821431,-500.0,0.00038356,120]
[340029368,1728337821453,-500.0,0.00038356,120]
[340029369,1728337821476,-500.0,0.00038356,120]
[340029370,1728337821497,-500.0,0.00038356,120]
[340029371,1728337821519,-500.0,0.00038356,120]
[340029372,1728337821540,-500.0,0.00038356,120]
[340029373,1728337821561,-500.0,0.00038356,120]
[340029374,1728337821583,-500.0,0.00038356,120]
[340029375,1728337821604,-500.0,0.00038356,120]
[340029376,1728337821626,-500.0,0.00038356,120]
[340029377,1728337821649,-500.0,0.00038356,120]
[340029378,1728337821670,-500.0,0.00038356,120]
[340029379,1728337821691,-500.0,0.00038356,120]
[340029380,1728337821712,-500.0,0.00038356,120]
[340029381,1728337821734,-500.0,0.00038356,120]
[340029382,1728337821755,-500.0,0.00038356,120]
[340029383,1728337821779,-500.0,0.00038356,120]
[340029384,1728337821800,-500.0,0.00038356,120]
[340029385,1728337821821,-500.0,0.00038356,120]
[340029386,1728337821843,-500.0,0.00038356,120]
[340029387,1728337821864,-500.0,0.00038356,120]
[340029388,1728337821887,-500.0,0.00038356,120]
[340029389,1728337821909,-500.0,0.00038356,120]
[340029390,1728337821931,-500.0,0.00038356,120]
[340029391,1728337821954,-500.0,0.00038356,120]
[340029392,1728337821978,-470.08827304,0.00038356,120]
[340029393,1728337822000,-500.0,0.00038356,120]
[340029394,1728337822022,-921.15,0.00038356,120]
[340029395,1728337822044,-500.0,0.00038356,120]
[340029396,1728337822070,-500.0,0.00038356,120]
[340029397,1728337822092,-500.0,0.00038356,120]
[340029398,1728337822115,-261.015434,0.00038366,2]
[340029399,1728337822137,-261.015434,0.00038366,2]
[340029400,1728337822160,-163.134646,0.00038524,2]
[340029401,1728337822183,-1500.0,0.000386,2]
[340029402,1728337822205,-500.0,0.00038629,120]
[340029403,1728337822229,-500.0,0.00038629,120]
[340029404,1728337822251,-948.92,0.00038629,120]
[340029405,1728337822274,-500.0,0.00038629,120]
[340029406,1728337822296,-424.26515206,0.00038629,120]
[340029407,1728337822318,-500.0,0.00038629,120]
[340029408,1728337822340,-984.86,0.00038629,120]
[340029409,1728337822364,-500.0,0.00038629,120]
[340029410,1728337822386,-1183.48,0.00038629,120]
[340029411,1728337822408,-1300.28,0.0003863,120]
[340029412,1728337822429,-624.5,0.0003863,120]
[340029413,1728337822451,-500.0,0.0003863,120]
[340029414,1728337822475,-238.08177105,0.0003863,120]
[340029415,1728337822497,-1232.72,0.0003863,120]
[340029416,1728337822519,-412.82,0.0003863,120]
[340029417,1728337822540,-500.0,0.0003863,120]
[340029418,1728337822562,-500.0,0.0003863,120]
[340029419,1728337822587,-1019.98,0.0003863,120]
[340029420,1728337822608,-565.72,0.0003863,120]
[340029421,1728337822630,-1239.94,0.0003863,120]
[340029422,1728337822656,-500.0,0.0003863,120]
[340029423,1728337822677,-302.95,0.0003863,120]
[340029424,1728337822698,-500.0,0.0003863,120]
[340029425,1728337822721,-3126.45,0.0003863,120]
[340029426,1728337822744,-500.0,0.0003863,120]
[340029427,1728337822765,-539.2072237,0.0003863,120]
[340029428,1728337822787,-500.0,0.0003863,120]
[340029429,1728337822810,-500.0,0.0003863,120]
[340029430,1728337822831,-500.0,0.0003863,120]
[340029431,1728337822853,-500.0,0.0003863,120]
[340029432,1728337822875,-500.0,0.0003863,120]
[340029433,1728337822897,-500.0,0.0003863,120]
[340029434,1728337822919,-500.0,0.0003863,120]
[340029435,1728337822941,-500.0,0.0003863,120]
[340029436,1728337822963,-921.15,0.0003863,120]
[340029437,1728337822985,-500.0,0.0003863,120]
[340029438,1728337823008,-427.5797296,0.0003863,120]
[340029439,1728337823029,-500.0,0.0003863,120]
[340029440,1728337823052,-261.015434,0.0003884,2]
[340029441,1728337823074,-261.015434,0.0003884,2]
[340029442,1728337823095,-500.0,0.00038903,120]
[340029443,1728337823116,-500.0,0.00038903,120]
[340029444,1728337823139,-948.92,0.00038903,120]
[340029445,1728337823162,-500.0,0.00038903,120]
[340029446,1728337823185,-638.35,0.00038903,120]
[340029447,1728337823209,-984.86,0.00038903,120]
[340029448,1728337823232,-505.76,0.00038903,120]
[340029449,1728337823254,-1183.48,0.00038903,120]
[340029450,1728337823276,-1300.28,0.00038904,120]
[340029451,1728337823385,-624.5,0.00038904,120]
[340029452,1728337823408,-286.35975243,0.00038904,120]
[340029453,1728337823431,-1232.72,0.00038904,120]
[340029454,1728337823453,-500.0,0.00038904,120]
[340029455,1728337823476,-1019.98,0.00038904,120]
[340029456,1728337823497,-1239.94,0.00038904,120]
[340029457,1728337823520,-500.0,0.00038904,120]
[340029458,1728337823542,-3126.45,0.00038904,120]
[340029459,1728337823564,-500.0,0.00038904,120]
[340029460,1728337823587,-500.0,0.00038904,120]
[340029461,1728337823609,-500.0,0.00038904,120]
[340029462,1728337823630,-500.0,0.00038904,120]
[340029463,1728337823656,-500.0,0.00038904,120]
[340029464,1728337823678,-500.0,0.00038904,120]
[340029465,1728337823699,-500.0,0.00038904,120]
[340029466,1728337823721,-163.62505521,0.00038904,120]
[340029467,1728337823743,-921.15,0.00038904,120]
[340029468,1728337823764,-500.0,0.00038904,120]
[340029469,1728337823786,-500.0,0.00038904,120]
[340029470,1728337823808,-289.8,0.00039037,120]
[340029471,1728337823830,-216.88986998,0.00039077,2]
[340029472,1728337823853,-162.64,0.00039103,2]
[340029473,1728337823875,-172.62,0.00039137,2]
[340029474,1728337823898,-163.134646,0.00039156,2]
[340029475,1728337823920,-500.0,0.00039177,120]
[340029476,1728337823942,-500.0,0.00039177,120]
[340029477,1728337823965,-528.13,0.00039177,120]
[340029478,1728337823996,-500.0,0.00039177,120]
[340029479,1728337824025,-500.0,0.00039177,120]
[340029480,1728337824046,-497.16673783,0.00039177,120]
[340029481,1728337824068,-500.0,0.00039177,120]
[340029482,1728337824090,-500.0,0.00039177,120]
[340029483,1728337824113,-500.0,0.00039177,120]
[340029484,1728337824136,-500.0,0.00039177,120]
[340029485,1728337824158,-500.0,0.00039177,120]
[340029486,1728337824180,-500.0,0.00039177,120]
[340029487,1728337824202,-500.0,0.00039177,120]
[340029488,1728337824228,-500.0,0.00039177,120]
[340029489,1728337824249,-948.92,0.00039177,120]
[340029490,1728337824270,-500.0,0.00039177,120]
[340029491,1728337824292,-500.0,0.00039177,120]
[340029492,1728337824313,-500.0,0.00039177,120]
[340029493,1728337824336,-500.0,0.00039177,90]
[340029494,1728337824359,-500.0,0.00039177,120]
[340029495,1728337824383,-500.0,0.00039177,120]
[340029496,1728337824405,-500.0,0.00039177,120]
[340029497,1728337824427,-984.86,0.00039177,120]
[340029498,1728337824449,-500.0,0.00039177,120]
[340029499,1728337824476,-1015.29,0.00039177,120]
[340029500,1728337824498,-1183.48,0.00039177,120]
[340029501,1728337824520,-560.43128563,0.00039177,120]
[340029502,1728337824542,-500.0,0.00039177,120]
[340029503,1728337824564,-1300.28,0.00039178,120]
[340029504,1728337824586,-624.5,0.00039178,120]
[340029505,1728337824608,-1232.72,0.00039178,120]
[340029506,1728337824631,-519.06,0.00039178,120]
[340029507,1728337824657,-1019.98,0.00039178,120]
[340029508,1728337824678,-1239.94,0.00039178,120]
[340029509,1728337824701,-587.32,0.00039178,120]
[340029510,1728337824726,-3126.45,0.00039178,120]
[340029511,1728337824748,-490.28,0.00039178,120]
[340029512,1728337824770,-187.02,0.00039178,120]
[340029513,1728337824791,-500.0,0.00039178,120]
[340029514,1728337824812,-500.0,0.00039178,120]
[340029515,1728337824834,-500.0,0.00039178,120]
[340029516,1728337824856,-500.0,0.00039178,120]
[340029517,1728337824880,-500.0,0.00039178,120]
[340029518,1728337824903,-921.15,0.00039178,120]
[340029519,1728337824925,-163.60896447,0.00039178,120]
[340029520,1728337824947,-500.0,0.00039178,120]
[340029521,1728337824970,-261.015434,0.00039313,2]
[340029522,1728337824993,-261.015434,0.00039313,2]
[340029523,1728337825015,-500.0,0.00039451,120]
[340029524,1728337825036,-544.1098189,0.00039451,120]
[340029525,1728337825058,-500.0,0.00039451,120]
[340029526,1728337825080,-410.76,0.00039451,120]
[340029527,1728337825102,-500.0,0.00039451,120]
[340029528,1728337825124,-500.0,0.00039451,120]
[340029529,1728337825145,-500.0,0.00039451,120]
[340029530,1728337825167,-500.0,0.00039451,120]
[340029531,1728337825188,-500.0,0.00039451,120]
[340029532,1728337825210,-500.0,0.00039451,120]
[340029533,1728337825231,-500.0,0.00039451,120]
[340029534,1728337825253,-500.0,0.00039451,120]
[340029535,1728337825274,-948.92,0.00039451,120]
[340029536,1728337825297,-500.0,0.00039451,120]
[340029537,1728337825319,-500.0,0.00039451,120]
[340029538,1728337825341,-500.0,0.00039451,120]
[340029539,1728337825363,-500.0,0.00039451,90]
[340029540,1728337825387,-500.0,0.00039451,120]
[340029541,1728337825412,-500.0,0.00039451,120]
[340029542,1728337825439,-500.0,0.00039451,120]
[340029543,1728337825462,-984.86,0.00039451,120]
[340029544,1728337825485,-500.0,0.00039451,120]
[340029545,1728337825507,-1015.29,0.00039451,120]
[340029546,1728337825530,-1183.48,0.00039451,120]
[340029547,1728337825552,-500.0,0.00039451,120]
[340029548,1728337825572,-1300.28,0.00039452,120]
[340029549,1728337825594,-624.5,0.00039452,120]
[340029550,1728337825616,-1232.72,0.00039452,120]
[340029551,1728337825640,-1019.98,0.00039452,120]
[340029552,1728337825661,-1239.94,0.00039452,120]
[340029553,1728337825684,-3126.45,0.00039452,120]
[340029554,1728337825706,-500.0,0.00039452,120]
[340029555,1728337825730,-500.0,0.00039452,120]
[340029556,1728337825752,-500.0,0.00039452,120]
[340029557,1728337825773,-500.0,0.00039452,120]
[340029558,1728337825794,-500.0,0.00039452,120]
[340029559,1728337825816,-921.15,0.00039452,120]
[340029560,1728337825839,-1000.0,0.00039452,30]
[340029561,1728337825946,-500.0,0.00039725,120]
[340029562,1728337825972,-500.0,0.00039725,120]
[340029563,1728337825995,-500.0,0.00039725,120]
[340029564,1728337826017,-500.0,0.00039725,120]
[340029565,1728337826040,-313.22873528,0.00039725,120]
[340029566,1728337826062,-500.0,0.00039725,120]
[340029567,1728337826083,-500.0,0.00039725,120]
[340029568,1728337826106,-500.0,0.00039725,120]
[340029569,1728337826128,-948.92,0.00039725,120]
[340029570,1728337826152,-500.0,0.00039725,120]
[340029571,1728337826173,-500.0,0.00039725,120]
[340029572,1728337826196,-500.0,0.00039725,90]
[340029573,1728337826218,-500.0,0.00039725,120]
[340029574,1728337826240,-500.0,0.00039725,120]
[340029575,1728337826261,-500.0,0.00039725,120]
[340029576,1728337826283,-984.86,0.00039725,120]
[340029577,1728337826305,-500.0,0.00039725,120]
[340029578,1728337826326,-1015.29,0.00039725,120]
[340029579,1728337826348,-1183.48,0.00039725,120]
[340029580,1728337826370,-500.0,0.00039725,120]
[340029581,1728337826391,-1300.28,0.00039726,120]
[340029582,1728337826413,-624.5,0.00039726,120]
[340029583,1728337826435,-1232.72,0.00039726,120]
[340029584,1728337826457,-1019.98,0.00039726,120]
[340029585,1728337826479,-1239.94,0.00039726,120]
[340029586,1728337826501,-3126.45,0.00039726,120]
[340029587,1728337826524,-571.19,0.00039726,120]
[340029588,1728337826545,-157.16,0.00039726,120]
[340029589,1728337826567,-500.0,0.00039726,120]
[340029590,1728337826588,-500.0,0.00039726,120]
[340029591,1728337826610,-921.15,0.00039726,120]
[340029592,1728337826632,-163.134646,0.00039787,2]
[340029593,1728337826657,-261.015434,0.00039787,2]
[340029594,1728337826680,-261.015434,0.00039787,2]
[340029595,1728337826702,-500.0,0.00039999,120]
[340029596,1728337826725,-500.0,0.00039999,120]
[340029597,1728337826747,-500.0,0.00039999,120]
[340029598,1728337826769,-500.0,0.00039999,120]
[340029599,1728337826791,-500.0,0.00039999,120]
[340029600,1728337826813,-500.0,0.00039999,120]
[340029601,1728337826835,-500.0,0.00039999,120]
[340029602,1728337826857,-948.92,0.00039999,120]
[340029603,1728337826880,-500.0,0.00039999,120]
[340029604,1728337826902,-500.0,0.00039999,120]
[340029605,1728337826924,-500.0,0.00039999,90]
[340029606,1728337826946,-500.0,0.00039999,120]
[340029607,1728337826970,-500.0,0.00039999,120]
[340029608,1728337826991,-500.0,0.00039999,120]
[340029609,1728337827014,-984.86,0.00039999,120]
[340029610,1728337827035,-500.0,0.00039999,120]
[340029611,1728337827057,-1015.29,0.00039999,120]
[340029612,1728337827079,-1183.48,0.00039999,120]
[340029613,1728337827100,-500.0,0.00039999,120]
[340029614,1728337827122,-20000.0,0.0004,5]
[340029615,1728337827144,-1300.28,0.0004,120]
[340029616,1728337827166,-624.5,0.0004,120]
[340029617,1728337827188,-1232.72,0.0004,120]
[340029618,1728337827210,-1019.98,0.0004,120]
[340029619,1728337827233,-1239.94,0.0004,120]
[340029620,1728337827255,-3126.45,0.0004,120]
[340029621,1728337827277,-2000.0,0.0004,120]
[340029622,1728337827299,-921.15,0.0004,120]
[340029623,1728337827320,-323.6816344,0.00040173,2]
[340029624,1728337827341,-1300.28,0.00040273,120]
[340029625,1728337827363,-624.5,0.00040273,120]
[340029626,1728337827385,-1232.72,0.00040273,120]
[340029627,1728337827407,-1019.98,0.00040273,120]
[340029628,1728337827429,-1239.94,0.00040273,120]
[340029629,1728337827453,-3126.45,0.00040273,120]
[340029630,1728337827480,-500.0,0.00040273,120]
[340029631,1728337827501,-500.0,0.00040273,120]
[340029632,1728337827523,-500.0,0.00040273,120]
[340029633,1728337827545,-612.25,0.00040273,120]
[340029634,1728337827567,-500.0,0.00040273,120]
[340029635,1728337827589,-500.0,0.00040273,120]
[340029636,1728337827611,-500.0,0.00040273,120]
[340029637,1728337827634,-948.92,0.00040273,120]
[340029638,1728337827658,-500.0,0.00040273,120]
[340029639,1728337827680,-500.0,0.00040273,120]
[340029640,1728337827703,-500.0,0.00040273,90]
[340029641,1728337827726,-921.15,0.00040273,120]
[340029642,1728337827749,-500.0,0.00040273,120]
[340029643,1728337827772,-500.0,0.00040273,120]
[340029644,1728337827795,-500.0,0.00040273,120]
[340029645,1728337827818,-984.86,0.00040273,120]
[340029646,1728337827841,-500.0,0.00040273,120]
[340029647,1728337827863,-1015.29,0.00040273,120]
[340029648,1728337827888,-1183.48,0.00040273,120]
[340029649,1728337827912,-500.0,0.00040273,120]
[340029650,1728337827934,-1300.28,0.00040547,120]
[340029651,1728337827956,-624.5,0.00040547,120]
[340029652,1728337827979,-1232.72,0.00040547,120]
[340029653,1728337828002,-1019.98,0.00040547,120]
[340029654,1728337828025,-1239.94,0.00040547,120]
[340029655,1728337828047,-3126.45,0.00040547,120]
[340029656,1728337828070,-500.0,0.00040547,120]
[340029657,1728337828092,-500.0,0.00040547,120]
[340029658,1728337828117,-500.0,0.00040547,120]
[340029659,1728337828139,-500.0,0.00040547,120]
[340029660,1728337828161,-500.0,0.00040547,120]
[340029661,1728337828183,-948.92,0.00040547,120]
[340029662,1728337828204,-500.0,0.00040547,120]
[340029663,1728337828225,-500.0,0.00040547,120]
[340029664,1728337828246,-500.0,0.00040547,90]
[340029665,1728337828267,-921.15,0.00040547,120]
[340029666,1728337828288,-500.0,0.00040547,120]
[340029667,1728337828392,-156.70157621,0.00040547,120]
[340029673,1728337831665,-446.45853724,0.00032463,4]
[340029674,1728337831738,-766.71121484,0.00032463,4]
[340029675,1728337831879,-2862.03116841,0.00032463,4]
[340029676,1728337831898,-160861.79907951,0.00032463,4]
[340029677,1728337831908,-205.96236154,0.00032463,120]
[340029678,1728337831917,-500.0,0.00038356,120]
[340029679,1728337831926,-500.0,0.00038629,120]
[340029680,1728337831935,-500.0,0.0003863,120]
[340029681,1728337831944,-500.0,0.00038903,120]
[340029682,1728337831953,-500.0,0.00038904,120]
[340029683,1728337831962,-500.0,0.00039177,120]
[340029684,1728337831971,-500.0,0.00039177,120]
[340029685,1728337831980,-500.0,0.00039177,120]
[340029686,1728337831989,-500.0,0.00039178,120]
[340029688,1728337831998,-500.0,0.00039451,120]
[340029689,1728337832007,-500.0,0.00039451,120]
[340029691,1728337832016,-157.29290658,0.00039451,120]
[340029693,1728337832025,-500.0,0.00039452,120]
[340029695,1728337832034,-500.0,0.00039452,120]
[340029697,1728337832042,-500.0,0.00039725,120]
[340029699,1728337832051,-500.0,0.00039725,120]
[340029700,1728337832060,-516.25,0.00039726,120]
[340029702,1728337832068,-500.0,0.00039726,120]
[340029704,1728337832077,-500.0,0.00039999,120]
[340029706,1728337832086,-500.0,0.00039999,120]
[340029707,1728337832095,-500.0,0.0004,120]
[340029709,1728337832104,-500.0,0.00040273,120]
[340029711,1728337832113,-500.0,0.00040273,120]
[340029713,1728337832122,-500.0,0.00040273,120]
[340029715,1728337832131,-343.29842379,0.00040547,120]
[340029717,1728337832140,-500.0,0.00040547,120]
[340029719,1728337832149,-984.86,0.00040547,120]
[340029720,1728337832159,-500.0,0.00040547,120]
[340029722,1728337832168,-1015.29,0.00040547,120]
[340029724,1728337832178,-1183.48,0.00040547,120]
[340029726,1728337832187,-500.0,0.00040547,120]
[340029728,1728337832195,-500.0,0.00040547,120]
[340029729,1728337832205,-500.0,0.00040547,120]
[340029731,1728337832214,-500.0,0.00040547,120]
[340029733,1728337832224,-1300.28,0.00040821,120]
[340029735,1728337832233,-624.5,0.00040821,120]
[340029737,1728337832242,-1232.72,0.00040821,120]
[340029739,1728337832251,-1019.98,0.00040821,120]
[340029741,1728337832261,-1239.94,0.00040821,120]
[340029743,1728337832269,-3126.45,0.00040821,120]
[340029744,1728337832278,-500.0,0.00040821,120]
[340029746,1728337832288,-422.96,0.00040821,120]
[340029748,1728337832297,-500.0,0.00040821,120]
[340029750,1728337832306,-500.0,0.00040821,120]
[340029752,1728337832315,-948.92,0.00040821,120]
[340029754,1728337832324,-500.0,0.00040821,120]
[340029756,1728337832333,-500.0,0.00040821,120]
[340029758,1728337832342,-500.0,0.00040821,90]
[340029760,1728337832351,-921.15,0.00040821,120]
[340029762,1728337832360,-500.0,0.00040821,120]
[340029764,1728337832369,-500.0,0.00040821,120]
[340029766,1728337832378,-500.0,0.00040821,120]
[340029767,1728337832386,-984.86,0.00040821,120]
[340029769,1728337832395,-500.0,0.00040821,120]
[340029771,1728337832404,-1015.29,0.00040821,120]
[340029773,1728337832413,-1183.48,0.00040821,120]
[340029775,1728337832422,-500.0,0.00040821,120]
[340029777,1728337832430,-500.0,0.00040821,120]
[340029779,1728337832440,-500.0,0.00040821,120]
[340029781,1728337832449,-500.0,0.00040821,120]
[340029782,1728337832457,-400.0,0.00040995,2]
[340029784,1728337832467,-682.32785936,0.00040996,13]
[340029786,1728337832475,-1300.28,0.00041095,120]
[340029788,1728337832484,-624.5,0.00041095,120]
[340029790,1728337832493,-1232.72,0.00041095,120]
[340029792,1728337832502,-1019.98,0.00041095,120]
[340029794,1728337832511,-1239.94,0.00041095,120]
[340029796,1728337832520,-3126.45,0.00041095,120]
[340029798,1728337832529,-500.0,0.00041095,120]
[340029800,1728337832538,-555.06,0.00041095,120]
[340029802,1728337832547,-500.0,0.00041095,120]
[340029803,1728337832556,-948.92,0.00041095,120]
[340029804,1728337832567,-500.0,0.00041095,120]
[340029805,1728337832576,-311.52525142,0.00041095,120]
[340029806,1728337832585,-500.0,0.00041095,90]
[340029807,1728337832594,-921.15,0.00041095,120]
[340029808,1728337832603,-500.0,0.00041095,120]
[340029809,1728337832611,-500.0,0.00041095,120]
[340029810,1728337832620,-500.0,0.00041095,120]
[340029811,1728337832629,-984.86,0.00041095,120]
[340029812,1728337832643,-500.0,0.00041095,120]
[340029813,1728337832651,-1015.29,0.00041095,120]
[340029814,1728337832660,-1183.48,0.00041095,120]
[340029815,1728337832669,-643.63386305,0.00041095,120]
[340029816,1728337832679,-253.17,0.00041095,120]
[340029817,1728337832687,-500.0,0.00041095,120]
[340029818,1728337832696,-157.0,0.00041096,2]
[340029819,1728337832706,-162.64,0.00041367,2]
[340029820,1728337832715,-1300.28,0.00041369,120]
[340029821,1728337832724,-624.5,0.00041369,120]
[340029822,1728337832732,-1232.72,0.00041369,120]
[340029823,1728337832742,-1019.98,0.00041369,120]
[340029824,1728337832751,-1239.94,0.00041369,120]
[340029825,1728337832759,-3126.45,0.00041369,120]
[340029826,1728337832768,-500.0,0.00041369,120]
[340029827,1728337832778,-500.0,0.00041369,120]
[340029828,1728337832787,-948.92,0.00041369,120]
[340029829,1728337832796,-500.0,0.00041369,120]
[340029830,1728337832805,-500.0,0.00041369,90]
[340029831,1728337832814,-921.15,0.00041369,120]
[340029832,1728337832823,-500.0,0.00041369,120]
[340029833,1728337832832,-500.0,0.00041369,120]
[340029834,1728337832842,-301.26455829,0.00041369,120]
[340029835,1728337832850,-984.86,0.00041369,120]
[340029836,1728337832859,-500.0,0.00041369,120]
[340029837,1728337832868,-1015.29,0.00041369,120]
[340029838,1728337832878,-1183.48,0.00041369,120]
[340029839,1728337832887,-500.0,0.00041369,120]
[340029840,1728337832896,-1500.0,0.000414,2]
[340029841,1728337832905,-927.0,0.00041479,7]
[340029842,1728337832914,-203.58,0.00041495,120]
[340029843,1728337832924,-1300.28,0.00041643,120]
[340029844,1728337832933,-624.5,0.00041643,120]
[340029845,1728337832942,-1232.72,0.00041643,120]
[340029846,1728337832951,-1019.98,0.00041643,120]
[340029847,1728337832961,-1239.94,0.00041643,120]
[340029848,1728337832970,-3126.45,0.00041643,120]
[340029849,1728337832979,-500.0,0.00041643,120]
[340029850,1728337832989,-500.0,0.00041643,120]
[340029851,1728337832998,-948.92,0.00041643,120]
[340029852,1728337833008,-500.0,0.00041643,120]
[340029853,1728337833017,-500.0,0.00041643,90]
[340029854,1728337833026,-921.15,0.00041643,120]
[340029855,1728337833036,-500.0,0.00041643,120]
[340029856,1728337833045,-500.0,0.00041643,120]
[340029857,1728337833055,-984.86,0.00041643,120]
[340029858,1728337833065,-527.80628077,0.00041643,120]
[340029859,1728337833074,-1015.29,0.00041643,120]
[340029860,1728337833083,-1183.48,0.00041643,120]
[340029861,1728337833093,-150.0,0.00041881,120]
[340029862,1728337833102,-3123.7217975,0.00041907,7]
[340029863,1728337833111,-1300.28,0.00041917,120]
[340029864,1728337833120,-624.5,0.00041917,120]
[340029865,1728337833129,-1232.72,0.00041917,120]
[340029866,1728337833139,-1019.98,0.00041917,120]
[340029867,1728337833148,-1239.94,0.00041917,120]
[340029868,1728337833157,-3126.45,0.00041917,120]
[340029869,1728337833167,-422.39250997,0.00041917,120]
[340029870,1728337833176,-500.0,0.00041917,120]
[340029871,1728337833186,-948.92,0.00041917,120]
[340029872,1728337833195,-500.0,0.00041917,120]
[340029873,1728337833204,-500.0,0.00041917,90]
[340029874,1728337833213,-921.15,0.00041917,120]
[340029875,1728337833223,-500.0,0.00041917,120]
[340029876,1728337833232,-500.0,0.00041917,120]
[340029877,1728337833243,-179.62620989,0.00041917,120]
[340029878,1728337833259,-805.23379011,0.00041917,120]
[340029879,1728337833268,-1015.29,0.00041917,120]
[340029880,1728337833278,-1183.48,0.00041917,120]
[340029881,1728337833287,-9371.1653925,0.00042181,7]
[340029882,1728337833296,-1300.28,0.00042191,120]
[340029883,1728337833305,-624.5,0.00042191,120]
[340029884,1728337833314,-1232.72,0.00042191,120]
[340029885,1728337833324,-1019.98,0.00042191,120]
[340029886,1728337833333,-1239.94,0.00042191,120]
[340029887,1728337833342,-3126.45,0.00042191,120]
[340029888,1728337833352,-605.11494808,0.00042191,120]
[340029889,1728337833361,-948.92,0.00042191,120]
[340029890,1728337833371,-500.0,0.00042191,120]
[340029891,1728337833380,-500.0,0.00042191,90]
[340029892,1728337833389,-921.15,0.00042191,120]
[340029893,1728337833398,-424.24,0.00042191,120]
[340029894,1728337833407,-500.0,0.00042191,120]
[340029895,1728337833416,-984.86,0.00042191,120]
[340029896,1728337833425,-1015.29,0.00042191,120]
[340029897,1728337833435,-1183.48,0.00042191,120]
[340029898,1728337833444,-9371.1653925,0.00042455,7]
[340029899,1728337833453,-237.47651731,0.00042455,2]
[340029900,1728337833463,-1300.28,0.00042465,120]
[340029901,1728337833472,-624.5,0.00042465,120]
[340029902,1728337833482,-1232.72,0.00042465,120]
[340029903,1728337833491,-1019.98,0.00042465,120]
[340029904,1728337833501,-1239.94,0.00042465,120]
[340029905,1728337833511,-3126.45,0.00042465,120]
[340029906,1728337833521,-948.92,0.00042465,120]
[340029907,1728337833530,-500.0,0.00042465,120]
[340029908,1728337833539,-575.01419174,0.00042465,90]
[340029909,1728337833639,-921.15,0.00042465,120]
[340029910,1728337833649,-642.26858456,0.00042465,120]
[340029911,1728337833659,-984.86,0.00042465,120]